[Event "*** Titled Tuesday Blitz"]
[Site "Chess.com"]
[Date "2019.12.03"]
[Round "4"]
[White "MajorCoast"]
[Black "marianokar"]
[Result "1/2-1/2"]
[WhiteElo "2133"]
[BlackElo "2403"]
[TimeControl "180+2"]
[EndTime "13:55:21 PST"]
[Termination "Game drawn by repetition"]

1. d4 {[%clk 0:03:01.9]} 1... Nf6 {[%clk 0:02:57.9]} 2. Nf3 {[%clk 0:03:03.3]}
2... e6 {[%clk 0:02:44.9]} 3. Bf4 {[%clk 0:03:03.7]} 3... d5 {[%clk 0:02:46.8]}
4. e3 {[%clk 0:03:05]} 4... Bd6 {[%clk 0:02:47.5]} 5. Bg3 {[%clk 0:03:05.6]}
5... O-O {[%clk 0:02:47.6]} 6. Nbd2 {[%clk 0:03:06.3]} 6... c5 {[%clk
0:02:48.9]} 7. c3 {[%clk 0:03:07.4]} 7... Nc6 {[%clk 0:02:50.3]} 8. Bd3 {[%clk
0:03:08.8]} 8... b6 {[%clk 0:02:51.2]} 9. O-O {[%clk 0:03:02.1]} 9... Bb7 {[%clk
0:02:52.1]} 10. Qe2 {[%clk 0:02:59.5]} 10... h6 {[%clk 0:02:31.2]} 11. e4 {[%clk
0:03:00.1]} 11... Bxg3 {[%clk 0:02:30.6]} 12. hxg3 {[%clk 0:02:58.2]} 12... dxe4
{[%clk 0:02:29.2]} 13. Nxe4 {[%clk 0:02:56]} 13... cxd4 {[%clk 0:02:28.6]} 14.
cxd4 {[%clk 0:02:52.5]} 14... Nb4 {[%clk 0:02:26]} 15. Nxf6+ {[%clk 0:02:40.8]}
15... Qxf6 {[%clk 0:02:27.9]} 16. Be4 {[%clk 0:02:41.1]} 16... Bxe4 {[%clk
0:02:11.9]} 17. Qxe4 {[%clk 0:02:43]} 17... Rfc8 {[%clk 0:02:03.1]} 18. a3
{[%clk 0:02:34.2]} 18... Nd5 {[%clk 0:02:03.5]} 19. Ne5 {[%clk 0:02:31]} 19...
Rc7 {[%clk 0:02:03.1]} 20. Rac1 {[%clk 0:02:19.6]} 20... Rac8 {[%clk 0:02:02.4]}
21. Rxc7 {[%clk 0:02:08.9]} 21... Rxc7 {[%clk 0:02:04.3]} 22. Nd3 {[%clk
0:01:49.1]} 22... Qd8 {[%clk 0:01:57]} 23. Nf4 {[%clk 0:01:41.4]} 23... Nxf4
{[%clk 0:01:54.6]} 24. Qxf4 {[%clk 0:01:39.3]} 24... Rd7 {[%clk 0:01:52.8]} 25.
Rd1 {[%clk 0:01:37.1]} 25... Rd5 {[%clk 0:01:53.2]} 26. Rc1 {[%clk 0:01:14.4]}
26... Rxd4 {[%clk 0:01:52.7]} 27. Qc7 {[%clk 0:00:48.5]} 27... Rd1+ {[%clk
0:01:31.4]} 28. Kh2 {[%clk 0:00:49.1]} 28... Qxc7 {[%clk 0:01:31.5]} 29. Rxc7
{[%clk 0:00:49]} 29... Rd2 {[%clk 0:01:32.4]} 30. Rxa7 {[%clk 0:00:47.6]} 30...
Rxf2 {[%clk 0:01:33]} 31. b4 {[%clk 0:00:43.5]} 31... Ra2 {[%clk 0:01:32.2]} 32.
Ra8+ {[%clk 0:00:29.8]} 32... Kh7 {[%clk 0:01:31.8]} 33. Rb8 {[%clk 0:00:29.4]}
33... Rxa3 {[%clk 0:01:29.7]} 34. Rxb6 {[%clk 0:00:30.9]} 34... Kg6 {[%clk
0:01:26.6]} 35. b5 {[%clk 0:00:31.6]} 35... Rb3 {[%clk 0:01:27.4]} 36. Rb8
{[%clk 0:00:29.7]} 36... e5 {[%clk 0:01:21.4]} 37. b6 {[%clk 0:00:30.4]} 37...
f6 {[%clk 0:01:20.7]} 38. b7 {[%clk 0:00:30.4]} 38... Kg5 {[%clk 0:01:18]} 39.
Kg1 {[%clk 0:00:27.6]} 39... Kg4 {[%clk 0:01:14.4]} 40. Kf2 {[%clk 0:00:21.7]}
40... f5 {[%clk 0:01:09.8]} 41. Re8 {[%clk 0:00:19]} 41... Rxb7 {[%clk
0:01:07.6]} 42. Rxe5 {[%clk 0:00:19.4]} 42... Rb2+ {[%clk 0:01:08.7]} 43. Ke3
{[%clk 0:00:20]} 43... Rb3+ {[%clk 0:00:58.2]} 44. Kf2 {[%clk 0:00:17.2]} 44...
Rxg3 {[%clk 0:00:56.9]} 45. Re7 {[%clk 0:00:18.3]} 45... Kf4 {[%clk 0:00:53.8]}
46. Rf7 {[%clk 0:00:12.5]} 46... Rg6 {[%clk 0:00:47.7]} 47. Rf8 {[%clk
0:00:08.9]} 47... Kg4 {[%clk 0:00:46.6]} 48. Rf7 {[%clk 0:00:08.4]} 48... h5
{[%clk 0:00:46.7]} 49. g3 {[%clk 0:00:08.6]} 49... h4 {[%clk 0:00:35.7]} 50.
gxh4 {[%clk 0:00:08.7]} 50... f4 {[%clk 0:00:32.4]} 51. h5 {[%clk 0:00:09.3]}
51... Rg5 {[%clk 0:00:33.2]} 52. h6 {[%clk 0:00:05.2]} 52... gxh6 {[%clk
0:00:33.3]} 53. Rh7 {[%clk 0:00:06]} 53... h5 {[%clk 0:00:30.3]} 54. Ra7 {[%clk
0:00:06.1]} 54... h4 {[%clk 0:00:29.4]} 55. Ra4 {[%clk 0:00:04.3]} 55... h3
{[%clk 0:00:29.2]} 56. Kg1 {[%clk 0:00:05.5]} 56... Kf3+ {[%clk 0:00:27.1]} 57.
Kh2 {[%clk 0:00:06.8]} 57... Rg8 {[%clk 0:00:23.5]} 58. Ra3+ {[%clk 0:00:06.7]}
58... Ke2 {[%clk 0:00:24.1]} 59. Kxh3 {[%clk 0:00:06.7]} 59... f3 {[%clk
0:00:24.5]} 60. Ra2+ {[%clk 0:00:06.9]} 60... Ke3 {[%clk 0:00:24.8]} 61. Ra3+
{[%clk 0:00:08.1]} 61... Ke4 {[%clk 0:00:25.5]} 62. Ra4+ {[%clk 0:00:09.3]}
62... Ke5 {[%clk 0:00:23.8]} 63. Ra5+ {[%clk 0:00:10.4]} 63... Kd4 {[%clk
0:00:24.2]} 64. Ra4+ {[%clk 0:00:11]} 64... Ke3 {[%clk 0:00:19.2]} 65. Ra3+
{[%clk 0:00:11.5]} 65... Kf2 {[%clk 0:00:15.9]} 66. Ra2+ {[%clk 0:00:10.8]}
66... Ke3 {[%clk 0:00:15.1]} 67. Ra3+ {[%clk 0:00:11.6]} 1/2-1/2

[Event "*** Titled Tuesday Blitz"]
[Site "Chess.com"]
[Date "2019.12.03"]
[Round "4"]
[White "MFBerna"]
[Black "AliKa2810"]
[Result "1/2-1/2"]
[WhiteElo "2355"]
[BlackElo "2529"]
[TimeControl "180+2"]
[EndTime "13:55:26 PST"]
[Termination "Game drawn by agreement"]

1. Nf3 {[%clk 0:03:01.9]} 1... d5 {[%clk 0:02:59.7]} 2. e3 {[%clk 0:03:02.5]}
2... Nf6 {[%clk 0:02:59.9]} 3. b3 {[%clk 0:03:03.7]} 3... e6 {[%clk 0:03:01]} 4.
Bb2 {[%clk 0:03:05.1]} 4... c5 {[%clk 0:03:02.6]} 5. Bb5+ {[%clk 0:03:05]} 5...
Bd7 {[%clk 0:03:00.6]} 6. Bxd7+ {[%clk 0:03:05.8]} 6... Nbxd7 {[%clk 0:03:01.7]}
7. d4 {[%clk 0:03:06.9]} 7... Bd6 {[%clk 0:03:02.7]} 8. O-O {[%clk 0:03:07.7]}
8... O-O {[%clk 0:03:04.2]} 9. Nbd2 {[%clk 0:03:09]} 9... Qc7 {[%clk 0:03:03.1]}
10. c4 {[%clk 0:03:10.1]} 10... cxd4 {[%clk 0:02:57.9]} 11. exd4 {[%clk
0:03:12]} 11... Rac8 {[%clk 0:02:57.1]} 12. Rc1 {[%clk 0:03:08.9]} 12... Qb8
{[%clk 0:02:57.8]} 13. Qe2 {[%clk 0:03:08.2]} 13... Rfe8 {[%clk 0:02:56.4]} 14.
Ne5 {[%clk 0:03:08.4]} 14... g6 {[%clk 0:02:49]} 15. Ndf3 {[%clk 0:03:07.7]}
15... Bf8 {[%clk 0:02:49.5]} 16. Ng5 {[%clk 0:03:03.8]} 16... Nxe5 {[%clk
0:02:41]} 17. dxe5 {[%clk 0:03:05.7]} 17... Nd7 {[%clk 0:02:30.9]} 18. Qf3
{[%clk 0:03:02.5]} 18... Re7 {[%clk 0:02:21.1]} 19. cxd5 {[%clk 0:03:03.5]}
19... Rxc1 {[%clk 0:02:14.1]} 20. Rxc1 {[%clk 0:03:05.4]} 20... exd5 {[%clk
0:01:39.8]} 21. Qxd5 {[%clk 0:03:06.2]} 21... Nxe5 {[%clk 0:01:19.5]} 22. Re1
{[%clk 0:02:57.8]} 22... Bg7 {[%clk 0:01:11.7]} 23. Bxe5 {[%clk 0:01:50.8]}
23... Bxe5 {[%clk 0:01:07.4]} 24. g3 {[%clk 0:01:30.5]} 24... Qd6 {[%clk
0:01:08]} 25. Qc4 {[%clk 0:01:09.9]} 25... Bxg3 {[%clk 0:00:54.5]} 26. Rxe7
{[%clk 0:00:35.2]} 26... Bxh2+ {[%clk 0:00:54.7]} 27. Kg2 {[%clk 0:00:36.1]}
27... Qxe7 {[%clk 0:00:56.3]} 28. Qh4 {[%clk 0:00:33.2]} 28... Be5 {[%clk
0:00:51.7]} 29. Qxh7+ {[%clk 0:00:33.4]} 29... Kf8 {[%clk 0:00:53]} 30. f4
{[%clk 0:00:28.3]} 30... Bg7 {[%clk 0:00:51.4]} 31. Nf3 {[%clk 0:00:16.5]} 31...
Qe2+ {[%clk 0:00:48.2]} 32. Kg3 {[%clk 0:00:18]} 32... Qxa2 {[%clk 0:00:47.6]}
33. Qh4 {[%clk 0:00:19.5]} 33... Qa5 {[%clk 0:00:45]} 34. Qg4 {[%clk 0:00:17.2]}
34... Qc7 {[%clk 0:00:45.1]} 35. Ng5 {[%clk 0:00:13]} 35... a5 {[%clk
0:00:44.5]} 36. Qd1 {[%clk 0:00:05.7]} 36... Bh6 {[%clk 0:00:31.5]} 37. Kg4
{[%clk 0:00:04.2]} 37... Bxg5 {[%clk 0:00:32]} 38. Kxg5 {[%clk 0:00:06.1]} 38...
Qc5+ {[%clk 0:00:25.2]} 39. Kh4 {[%clk 0:00:04.5]} 39... Qb4 {[%clk 0:00:15.3]}
40. Qd8+ {[%clk 0:00:04.9]} 40... Kg7 {[%clk 0:00:16.4]} 41. Kg4 {[%clk
0:00:05.4]} 41... Qxb3 {[%clk 0:00:13.6]} 42. Qd4+ {[%clk 0:00:05.9]} 42... f6
{[%clk 0:00:14.9]} 43. Qd7+ {[%clk 0:00:04]} 43... Qf7 {[%clk 0:00:15.8]} 44.
Qd8 {[%clk 0:00:05.7]} 44... a4 {[%clk 0:00:16.2]} 45. Qa8 {[%clk 0:00:05.9]}
45... Qd7+ {[%clk 0:00:16.7]} 46. Kh4 {[%clk 0:00:06.2]} 46... b5 {[%clk
0:00:17.7]} 47. Qa5 {[%clk 0:00:06.4]} 47... Qb7 {[%clk 0:00:09.3]} 48. Qb4
{[%clk 0:00:07.2]} 48... Qa7 {[%clk 0:00:08.4]} 49. Qxb5 {[%clk 0:00:07.6]}
49... a3 {[%clk 0:00:09]} 50. Qb1 {[%clk 0:00:06.5]} 50... a2 {[%clk 0:00:10.3]}
51. Qa1 {[%clk 0:00:08.4]} 51... Qf2+ {[%clk 0:00:10.1]} 52. Kg4 {[%clk
0:00:09.7]} 52... Qg2+ {[%clk 0:00:09.3]} 53. Kh4 {[%clk 0:00:11]} 53... Qc2
{[%clk 0:00:09.6]} 54. Qd4 {[%clk 0:00:08.7]} 54... Qh2+ {[%clk 0:00:10.1]} 55.
Kg4 {[%clk 0:00:09.7]} 55... Qg2+ {[%clk 0:00:10.3]} 56. Kh4 {[%clk 0:00:11.1]}
56... g5+ {[%clk 0:00:09.3]} 57. fxg5 {[%clk 0:00:12]} 57... Qxg5+ {[%clk
0:00:10.3]} 58. Kh3 {[%clk 0:00:13.1]} 58... Qf5+ {[%clk 0:00:09.3]} 59. Kh4
{[%clk 0:00:13.7]} 59... Qe5 {[%clk 0:00:07]} 60. Qa7+ {[%clk 0:00:13.7]} 60...
Kg6 {[%clk 0:00:07.6]} 61. Qxa2 {[%clk 0:00:15.6]} 61... Qe4+ {[%clk 0:00:08.2]}
62. Kg3 {[%clk 0:00:15.5]} 62... Kg5 {[%clk 0:00:06.6]} 63. Qd2+ {[%clk
0:00:15.4]} 63... Kf5 {[%clk 0:00:06.1]} 64. Qd7+ {[%clk 0:00:14.8]} 64... Qe6
{[%clk 0:00:06.6]} 65. Qxe6+ {[%clk 0:00:12.5]} 65... Kxe6 {[%clk 0:00:07.9]}
66. Kf4 {[%clk 0:00:14.4]} 66... f5 {[%clk 0:00:09.3]} 67. Kf3 {[%clk
0:00:15.6]} 67... Kf6 {[%clk 0:00:10.7]} 68. Kf4 {[%clk 0:00:16.8]} 1/2-1/2

[Event "*** Titled Tuesday Blitz"]
[Site "Chess.com"]
[Date "2019.12.03"]
[Round "4"]
[White "Chempiblinka"]
[Black "Aygehovit1992"]
[Result "0-1"]
[WhiteElo "2334"]
[BlackElo "2634"]
[TimeControl "180+2"]
[EndTime "13:55:33 PST"]
[Termination "Aygehovit1992 won by resignation"]

1. Nf3 {[%clk 0:02:58.8]} 1... g6 {[%clk 0:02:50.1]} 2. d4 {[%clk 0:02:59.5]}
2... Bg7 {[%clk 0:02:49.1]} 3. c4 {[%clk 0:03:01]} 3... Nf6 {[%clk 0:02:50.1]}
4. Nc3 {[%clk 0:03:02.6]} 4... O-O {[%clk 0:02:51.2]} 5. Bg5 {[%clk 0:03:04.1]}
5... d6 {[%clk 0:02:46.3]} 6. e3 {[%clk 0:03:05.4]} 6... h6 {[%clk 0:02:46]} 7.
Bh4 {[%clk 0:03:06.2]} 7... g5 {[%clk 0:02:46.9]} 8. Bg3 {[%clk 0:03:07.5]} 8...
Nh5 {[%clk 0:02:47.8]} 9. Qb3 {[%clk 0:03:03.4]} 9... Nxg3 {[%clk 0:02:46.9]}
10. hxg3 {[%clk 0:03:05.3]} 10... e6 {[%clk 0:02:47.4]} 11. O-O-O {[%clk
0:03:06.3]} 11... a5 {[%clk 0:02:47.9]} 12. Bd3 {[%clk 0:03:02.5]} 12... a4
{[%clk 0:02:46.9]} 13. Qc2 {[%clk 0:03:03.3]} 13... a3 {[%clk 0:02:48]} 14. b4
{[%clk 0:02:58.7]} 14... Nc6 {[%clk 0:02:48.5]} 15. Qb3 {[%clk 0:02:59.5]} 15...
Qe7 {[%clk 0:02:33.1]} 16. b5 {[%clk 0:02:53.3]} 16... Na5 {[%clk 0:02:31.3]}
17. Qc2 {[%clk 0:02:54.2]} 17... d5 {[%clk 0:02:29]} 18. cxd5 {[%clk 0:02:51.5]}
18... Qb4 {[%clk 0:02:28.2]} 19. Bh7+ {[%clk 0:02:33.8]} 19... Kh8 {[%clk
0:02:27.1]} 20. Nxg5 {[%clk 0:02:19.1]} 20... Qb2+ {[%clk 0:02:23.9]} 21. Kd2
{[%clk 0:02:18.4]} 21... Nc4+ {[%clk 0:01:50]} 22. Ke1 {[%clk 0:02:18.9]} 22...
exd5 {[%clk 0:01:47.2]} 23. Nxd5 {[%clk 0:02:13.9]} 23... Bg4 {[%clk 0:01:21.9]}
24. Nf3 {[%clk 0:02:04.9]} 24... c6 {[%clk 0:01:09.6]} 25. bxc6 {[%clk
0:01:56.7]} 25... bxc6 {[%clk 0:01:09.3]} 26. Nf4 {[%clk 0:01:51.1]} 26... c5
{[%clk 0:00:39.7]} 27. Qxc4 {[%clk 0:01:44.2]} 27... Kxh7 {[%clk 0:00:37.8]} 28.
Qxc5 {[%clk 0:01:44]} 28... Rac8 {[%clk 0:00:32.2]} 29. Qd5 {[%clk 0:01:26.6]}
29... Rc1 {[%clk 0:00:27.9]} 30. Qe4+ {[%clk 0:00:46.8]} 30... Kg8 {[%clk
0:00:24.7]} 31. Ne2 {[%clk 0:00:42.6]} 31... Qb4+ {[%clk 0:00:18.5]} 32. Nd2
{[%clk 0:00:36.7]} 32... Rxd1+ {[%clk 0:00:12]} 33. Kxd1 {[%clk 0:00:37.6]}
33... Be6 {[%clk 0:00:12.9]} 34. Nc1 {[%clk 0:00:33.2]} 34... Rc8 {[%clk
0:00:12.1]} 35. d5 {[%clk 0:00:31.3]} 35... Qxe4 {[%clk 0:00:12.6]} 36. Nxe4
{[%clk 0:00:32.4]} 36... Bxd5 {[%clk 0:00:14.3]} 37. Nd2 {[%clk 0:00:30.7]}
37... Bxg2 {[%clk 0:00:14.2]} 38. Rh4 {[%clk 0:00:31.4]} 38... Bb2 {[%clk
0:00:14.1]} 39. Rg4+ {[%clk 0:00:31.9]} 39... Kf8 {[%clk 0:00:14.7]} 40. Ne2
{[%clk 0:00:30.5]} 40... Bd5 {[%clk 0:00:15.2]} 41. Ra4 {[%clk 0:00:27.1]} 41...
Bxa2 {[%clk 0:00:16.1]} 42. Ra7 {[%clk 0:00:27.6]} 42... Bd5 {[%clk 0:00:13.5]}
43. e4 {[%clk 0:00:28.4]} 43... Ra8 {[%clk 0:00:12.3]} 44. Rxa8+ {[%clk
0:00:28.2]} 44... Bxa8 {[%clk 0:00:14.2]} 45. Kc2 {[%clk 0:00:29.9]} 45... Bf6
{[%clk 0:00:11.2]} 46. f3 {[%clk 0:00:30.7]} 46... a2 {[%clk 0:00:11.8]} 47. Nb3
{[%clk 0:00:32.2]} 47... a1=Q {[%clk 0:00:12.8]} 48. Nxa1 {[%clk 0:00:32.9]}
48... Bxa1 {[%clk 0:00:14.7]} 49. Kd3 {[%clk 0:00:34.8]} 49... f5 {[%clk
0:00:13.6]} 50. exf5 {[%clk 0:00:31.5]} 50... Bxf3 {[%clk 0:00:14.6]} 51. Nf4
{[%clk 0:00:32.6]} 51... Kf7 {[%clk 0:00:14.7]} 52. Ke3 {[%clk 0:00:33.8]} 52...
Bg4 {[%clk 0:00:14.8]} 53. Ke4 {[%clk 0:00:34.3]} 53... Kf6 {[%clk 0:00:15.8]}
54. Nd5+ {[%clk 0:00:35]} 54... Kg5 {[%clk 0:00:17]} 55. Ne3 {[%clk 0:00:28.2]}
55... Bh3 {[%clk 0:00:17.1]} 56. Kf3 {[%clk 0:00:19.6]} 56... Bd4 {[%clk
0:00:17.5]} 57. Nc2 {[%clk 0:00:19.8]} 57... Be5 {[%clk 0:00:10.9]} 58. Ne3
{[%clk 0:00:20.2]} 58... h5 {[%clk 0:00:09.9]} 59. Nc4 {[%clk 0:00:20]} 59...
Kxf5 {[%clk 0:00:08]} 60. Ne3+ {[%clk 0:00:18.6]} 60... Kg5 {[%clk 0:00:08.8]}
61. Nc4 {[%clk 0:00:20.2]} 61... Bc7 {[%clk 0:00:09.4]} 62. Ne3 {[%clk
0:00:19.9]} 62... Bd7 {[%clk 0:00:10.2]} 63. Kf2 {[%clk 0:00:20]} 63... Bb6
{[%clk 0:00:10.6]} 64. Kf3 {[%clk 0:00:21.3]} 64... Bxe3 {[%clk 0:00:11.5]} 65.
Kxe3 {[%clk 0:00:22.5]} 65... Kg4 {[%clk 0:00:13]} 66. Kf2 {[%clk 0:00:23.9]}
66... Bc6 {[%clk 0:00:14.2]} 0-1

[Event "*** Titled Tuesday Blitz"]
[Site "Chess.com"]
[Date "2019.12.03"]
[Round "4"]
[White "Konavets"]
[Black "mitrabhaa"]
[Result "1-0"]
[WhiteElo "2910"]
[BlackElo "2645"]
[TimeControl "180+2"]
[EndTime "13:55:35 PST"]
[Termination "Konavets won by resignation"]

1. c4 {[%clk 0:03:01.9]} 1... b6 {[%clk 0:02:59.9]} 2. Nc3 {[%clk 0:03:02]} 2...
Bb7 {[%clk 0:03:01]} 3. d4 {[%clk 0:03:02.2]} 3... e6 {[%clk 0:03:01.6]} 4. e4
{[%clk 0:03:00.5]} 4... Bb4 {[%clk 0:03:02.4]} 5. f3 {[%clk 0:03:02]} 5... e5
{[%clk 0:02:56.8]} 6. d5 {[%clk 0:02:50.2]} 6... Bxc3+ {[%clk 0:02:49.6]} 7.
bxc3 {[%clk 0:02:50]} 7... d6 {[%clk 0:02:51]} 8. Nh3 {[%clk 0:02:46.4]} 8...
Ne7 {[%clk 0:02:51.7]} 9. g4 {[%clk 0:02:43.9]} 9... Nd7 {[%clk 0:02:50.8]} 10.
Nf2 {[%clk 0:02:43.7]} 10... Nc5 {[%clk 0:02:51.4]} 11. h4 {[%clk 0:02:44.8]}
11... Ng6 {[%clk 0:02:51.6]} 12. Bg5 {[%clk 0:02:44.6]} 12... f6 {[%clk
0:02:51.3]} 13. Be3 {[%clk 0:02:45.8]} 13... Qe7 {[%clk 0:02:52.8]} 14. h5
{[%clk 0:02:45.8]} 14... Nf4 {[%clk 0:02:53.8]} 15. Qd2 {[%clk 0:02:46.7]} 15...
Rf8 {[%clk 0:02:39.9]} 16. Bxf4 {[%clk 0:02:45]} 16... exf4 {[%clk 0:02:40.7]}
17. Qxf4 {[%clk 0:02:46.7]} 17... O-O-O {[%clk 0:02:39.6]} 18. Be2 {[%clk
0:02:46.4]} 18... Qe5 {[%clk 0:02:37.3]} 19. Qxe5 {[%clk 0:02:41.9]} 19... fxe5
{[%clk 0:02:37.9]} 20. O-O {[%clk 0:02:43.6]} 20... Rf7 {[%clk 0:02:35.9]} 21.
Kg2 {[%clk 0:02:44.9]} 21... Kd7 {[%clk 0:02:30]} 22. Nh3 {[%clk 0:02:44.9]}
22... Rff8 {[%clk 0:02:29.1]} 23. Kg3 {[%clk 0:02:44.4]} 23... Ke7 {[%clk
0:02:30]} 24. Nf2 {[%clk 0:02:41.7]} 24... h6 {[%clk 0:02:24.8]} 25. Nd1 {[%clk
0:02:41.6]} 25... Bc8 {[%clk 0:02:24.6]} 26. Ne3 {[%clk 0:02:41.8]} 26... Bd7
{[%clk 0:02:25.7]} 27. Rad1 {[%clk 0:02:40.9]} 27... Rf4 {[%clk 0:02:20]} 28.
Ng2 {[%clk 0:02:41.3]} 28... Rf6 {[%clk 0:02:20.7]} 29. Nh4 {[%clk 0:02:41.9]}
29... Kf7 {[%clk 0:02:20.7]} 30. Rf2 {[%clk 0:02:38.4]} 30... Kg8 {[%clk
0:02:20.9]} 31. Rdf1 {[%clk 0:02:37.2]} 31... Rdf8 {[%clk 0:02:21.6]} 32. Ng6
{[%clk 0:02:38.3]} 32... R8f7 {[%clk 0:02:22]} 33. Nh4 {[%clk 0:02:29.7]} 33...
Ba4 {[%clk 0:02:19.4]} 34. Nf5 {[%clk 0:02:29.7]} 34... Bd7 {[%clk 0:02:19.9]}
35. Rg2 {[%clk 0:02:28.7]} 35... Bxf5 {[%clk 0:02:20.6]} 36. gxf5 {[%clk
0:02:30]} 36... Re7 {[%clk 0:02:21.7]} 37. Kf2 {[%clk 0:02:30.9]} 37... Kf8
{[%clk 0:02:21.9]} 38. Ke3 {[%clk 0:02:32]} 38... Ke8 {[%clk 0:02:22.9]} 39. Bd1
{[%clk 0:02:31.9]} 39... Kf8 {[%clk 0:02:20.3]} 40. Bc2 {[%clk 0:02:32.7]} 40...
Rff7 {[%clk 0:02:20.7]} 41. Rg6 {[%clk 0:02:33.1]} 41... Rf6 {[%clk 0:02:21.7]}
42. Rfg1 {[%clk 0:02:30.5]} 42... Ref7 {[%clk 0:02:22.2]} 43. R6g2 {[%clk
0:02:29.7]} 43... Re7 {[%clk 0:02:22.3]} 44. Rg3 {[%clk 0:02:25.5]} 44... Ref7
{[%clk 0:02:22.9]} 45. Rh1 {[%clk 0:02:08.3]} 45... Re7 {[%clk 0:02:23.6]} 46.
Rh4 {[%clk 0:02:09.1]} 46... Ref7 {[%clk 0:02:24.9]} 47. Kd2 {[%clk 0:02:09]}
47... Re7 {[%clk 0:02:25.8]} 48. Rhg4 {[%clk 0:02:10.6]} 48... Ref7 {[%clk
0:02:26.9]} 49. Kc1 {[%clk 0:02:12]} 49... Re7 {[%clk 0:02:28.2]} 50. Kb2 {[%clk
0:02:13.5]} 50... Ref7 {[%clk 0:02:29]} 51. Ka3 {[%clk 0:02:14.9]} 51... a5
{[%clk 0:02:17.5]} 52. Rg1 {[%clk 0:02:14.7]} 52... Re7 {[%clk 0:02:18.1]} 53.
Rd1 {[%clk 0:02:15.9]} 53... Ref7 {[%clk 0:02:18.6]} 54. Ba4 {[%clk 0:02:16.9]}
54... Re7 {[%clk 0:02:17]} 55. Bc6 {[%clk 0:02:13.9]} 55... Kg8 {[%clk
0:02:16.5]} 56. Kb2 {[%clk 0:02:14.5]} 56... Rf8 {[%clk 0:02:16.4]} 57. Rg6
{[%clk 0:02:13.6]} 57... Rf6 {[%clk 0:02:16.1]} 58. Rg2 {[%clk 0:02:12.9]} 58...
Kf8 {[%clk 0:02:15.1]} 59. Kc2 {[%clk 0:02:14.1]} 59... Ref7 {[%clk 0:02:16.3]}
60. Rb1 {[%clk 0:02:12.7]} 60... Re7 {[%clk 0:02:16.1]} 61. Rgg1 {[%clk
0:02:13.8]} 61... Ref7 {[%clk 0:02:16]} 62. Rb5 {[%clk 0:02:14.4]} 62... Ke7
{[%clk 0:02:15.8]} 63. Rd1 {[%clk 0:02:13.9]} 63... Rf8 {[%clk 0:02:14]} 64. Rd2
{[%clk 0:02:12.4]} 64... Na6 {[%clk 0:02:11]} 65. Rg2 {[%clk 0:02:12.8]} 65...
Nc5 {[%clk 0:02:08.7]} 66. Rxg7+ {[%clk 0:02:12.9]} 66... R8f7 {[%clk
0:02:08.9]} 67. Rg2 {[%clk 0:02:13.1]} 67... Kf8 {[%clk 0:02:10]} 68. Rb1 {[%clk
0:02:13.1]} 68... Rg7 {[%clk 0:02:10.7]} 69. Rxg7 {[%clk 0:02:08.8]} 69... Kxg7
{[%clk 0:02:11.3]} 70. Rg1+ {[%clk 0:02:10.7]} 70... Kf7 {[%clk 0:02:11]} 71.
Kd2 {[%clk 0:02:11.7]} 71... Kf8 {[%clk 0:02:08.2]} 72. Ke3 {[%clk 0:02:12.7]}
72... Kf7 {[%clk 0:02:09.1]} 73. Rg2 {[%clk 0:02:05.2]} 73... Kf8 {[%clk
0:02:09.8]} 74. Rg4 {[%clk 0:02:04.6]} 74... Kf7 {[%clk 0:02:10.8]} 75. Rg3
{[%clk 0:02:06.1]} 75... Kf8 {[%clk 0:02:11.7]} 76. f4 {[%clk 0:02:07.6]} 76...
Kf7 {[%clk 0:02:07.4]} 77. fxe5 {[%clk 0:02:06.3]} 77... dxe5 {[%clk 0:02:08.5]}
78. Bb5 {[%clk 0:02:06.7]} 78... Kf8 {[%clk 0:02:08.1]} 79. Rg1 {[%clk 0:02:04]}
79... Kf7 {[%clk 0:02:08.7]} 80. Kf3 {[%clk 0:02:05.4]} 80... Kf8 {[%clk
0:02:08.5]} 81. Rg4 {[%clk 0:01:46]} 81... Kf7 {[%clk 0:02:08.2]} 82. Ke2 {[%clk
0:01:47.1]} 82... Kf8 {[%clk 0:02:09]} 83. Kd2 {[%clk 0:01:48.5]} 83... Kf7
{[%clk 0:02:10.1]} 84. Kc2 {[%clk 0:01:49.9]} 84... Kf8 {[%clk 0:02:11.1]} 85.
Kb2 {[%clk 0:01:51.4]} 85... Kf7 {[%clk 0:02:12.4]} 86. Ka3 {[%clk 0:01:52.7]}
86... Kf8 {[%clk 0:02:13.5]} 87. Ba4 {[%clk 0:01:54]} 87... Kf7 {[%clk
0:02:10.2]} 88. Bc2 {[%clk 0:01:54.3]} 88... Kf8 {[%clk 0:02:11]} 89. Kb2 {[%clk
0:01:55.5]} 89... Kf7 {[%clk 0:02:12.1]} 90. Kc1 {[%clk 0:01:56.5]} 90... Kf8
{[%clk 0:02:13.3]} 91. Kd2 {[%clk 0:01:57.8]} 91... Kf7 {[%clk 0:02:14.4]} 92.
Ke3 {[%clk 0:01:59.1]} 92... Kf8 {[%clk 0:02:15.3]} 93. Rg1 {[%clk 0:01:53.2]}
93... Kf7 {[%clk 0:02:15]} 94. Bd1 {[%clk 0:01:54.3]} 94... Kf8 {[%clk
0:02:15.7]} 95. Bf3 {[%clk 0:01:55.3]} 95... Kf7 {[%clk 0:02:16.3]} 96. Be2
{[%clk 0:01:43.7]} 96... Kf8 {[%clk 0:02:16.7]} 97. Bd3 {[%clk 0:01:42]} 97...
Kf7 {[%clk 0:02:17.2]} 98. Bc2 {[%clk 0:01:43.5]} 98... Kf8 {[%clk 0:02:18.3]}
99. Kf3 {[%clk 0:01:44.9]} 99... Rd6 {[%clk 0:02:12.1]} 100. Kg4 {[%clk
0:01:44.9]} 100... Rd7 {[%clk 0:02:12.7]} 101. f6 {[%clk 0:01:46.1]} 101... c6
{[%clk 0:01:47.1]} 102. Kf5 {[%clk 0:01:45.6]} 102... cxd5 {[%clk 0:01:48.1]}
103. cxd5 {[%clk 0:01:47.5]} 1-0